[Event "WYCC 2018 O14"]
[Site "Halkidiki"]
[Date "2018.10.21"]
[Round "2"]
[White "Nakahara, Kan"]
[Black "Popov, Konstantin"]
[Result "0-1"]
[ECO "B50"]
[WhiteElo "1850"]
[BlackElo "2304"]
[Annotator "NA"]
[PlyCount "80"]
[EventDate "2018.10.20"]
[EventType "swiss"]
[EventCountry "GRE"]
[SourceTitle "playchess.com"]
[Source "ChessBase"]
[SourceQuality "1"]
[TimeControl "40/5400+30:1800+30"]

1. e4 {[%emt 0:00:00]} c5 {[%emt 0:00:00]} 2. Nf3 {[%emt 0:00:00]} d6 {[%emt 0:00:00]} 3. d4 {[%emt 0:00:00]} Nf6 {[%emt 0:00:13]} 4. dxc5 {[%emt 0:00:01]} Nxe4 {[%emt 0:00:09]} 5. cxd6 {[%emt 0:00:18]} Nc6 {[%emt 0:00:39]} 6. Be2 {[%emt 0:10:35]} Nxd6 {[%emt 0:02:30]} 7. O-O {[%emt 0:04:52]} g6 {[%emt 0:02:07]} 8. c3 {[%emt 0:01:30]} Bg7 {[%emt 0:02:04]} 9. Bf4 {[%emt 0:02:44]} O-O {[%emt 0:02:47] B22: Sicilian: 2 c3} 10. Bxd6 {[%emt 0:01:40]} exd6 {[%emt 0:01:11]} 11. Nbd2 {[%emt 0:04:58]} (11. Na3 d5 12. Nb5 a6 13. Nbd4 Re8 14. Re1 Qd6 15. Qd2 Bd7 16. Rad1 Re7 17. Bf1 Rxe1 18. Rxe1 {½-½ (46) Leko,P (2693)-Nepomniachtchi,I (2767) Doha 2016}) 11... Be6 $146 {[%emt 0:06:01]} ({Predecessor:} 11... Re8 12. Nb3 d5 13. Re1 Qb6 14. Qxd5 Be6 15. Qb5 Bxb3 16. axb3 Qc7 17. Bc4 {½-½ (67) Yandemirov,V (2461)-Sokolov,S (2356) Kazan 2008}) 12. Nb3 {[%emt 0:04:38]} Qb6 {[%emt 0:00:56]} 13. Nfd2 {[%emt 0:04:53]} d5 {[%emt 0:05:54]} 14. Nf3 {[%emt 0:04:39]} Rfd8 {[%emt 0:03:45]} 15. Nfd4 {[%emt 0:01:48]} Nxd4 {[%emt 0:02:39]} 16. cxd4 {[%emt 0:00:32]} a5 {[%emt 0:06:28]} 17. Qd2 {[%emt 0:01:20]} Rac8 {[%emt 0:14:30]} 18. Rac1 {[%emt 0:08:37]} Qb4 {[%emt 0:07:39]} 19. Qxb4 {[%emt 0:05:57]} axb4 {[%emt 0:00:02]} 20. Bd3 {[%emt 0:01:10]} b6 {[%emt 0:01:44]} 21. a4 {[%emt 0:06:01]} bxa3 {[%emt 0:00:52]} 22. bxa3 {[%emt 0:00:03]} Bh6 {[%emt 0:01:39]} 23. Rb1 {[%emt 0:01:21]} Rc3 {[%emt 0:00:29]} 24. Bb5 {[%emt 0:01:20]} Bf8 25. Nd2 {[%emt 0:09:30]} Bxa3 {[%emt 0:14:47]} 26. Ba6 {[%emt 0:01:09]} Rb8 {[%emt 0:00:56]} 27. Rb5 {[%emt 0:00:32]} Bd6 {[%emt 0:01:23]} 28. Rfb1 {[%emt 0:02:01]} Bc7 {[%emt 0:00:35]} 29. R5b4 {[%emt 0:03:24]} Ra8 {[%emt 0:02:59]} 30. Bf1 {[%emt 0:01:02]} Ra2 {[%emt 0:03:15]} 31. Nf3 {[%emt 0:01:20]} Rcc2 {[%emt 0:01:10]} 32. Ng5 {[%emt 0:01:02]} Rxf2 {[%emt 0:02:57]} 33. Nxe6 {[%emt 0:00:21]} fxe6 {[%emt 0:00:02]} 34. R4b3 {[%emt 0:01:51]} Rac2 {[%emt 0:05:49]} 35. Re1 {[%emt 0:02:08]} Kf7 {[%emt 0:00:25]} 36. Rbe3 {[%emt 0:00:13] [#]} Rf6 $19 {[%emt 0:00:52]} 37. Bd3 {[%emt 0:00:24]} Rd2 {[%emt 0:00:15]} 38. Rc1 {[%emt 0:01:36]} Bf4 {[%emt 0:00:08]} 39. Rh3 {[%emt 0:00:49]} Rxd3 {[%emt 0:00:16]} 40. Rxh7+ {[%emt 0:00:00]} Kg8 0-1

[Event "WYCC 2018 O14"]
[Site "Halkidiki"]
[Date "2018.10.21"]
[Round "2"]
[White "Dabarera, G W D M"]
[Black "Fecker, Noah"]
[Result "1/2-1/2"]
[ECO "B22"]
[WhiteElo "1768"]
[BlackElo "2184"]
[Annotator "NA"]
[PlyCount "66"]
[EventDate "2018.10.20"]
[EventType "swiss"]
[EventCountry "GRE"]
[SourceTitle "playchess.com"]
[Source "ChessBase"]
[SourceQuality "1"]
[TimeControl "40/5400+30:1800+30"]

1. e4 {[%emt 0:00:00]} c5 {[%emt 0:00:00]} 2. c3 d5 {[%emt 0:01:14]} 3. exd5 {[%emt 0:00:00]} Qxd5 {[%emt 0:00:08]} 4. d4 {[%emt 0:00:00]} Nf6 {[%emt 0:03:21]} 5. Nf3 {[%emt 0:00:27]} Bg4 {[%emt 0:01:17]} 6. Be2 {[%emt 0:00:07]} cxd4 {[%emt 0:04:33]} 7. cxd4 {[%emt 0:00:58]} e6 {[%emt 0:00:30]} 8. Nc3 {[%emt 0:00:10]} Qd8 {[%emt 0:00:33]} 9. Qb3 {[%emt 0:03:00]} Qb6 {[%emt 0:03:44]} 10. Qxb6 {[%emt 0:03:04]} axb6 {[%emt 0:00:16]} 11. Bb5+ {[%emt 0:00:19]} Nc6 {[%emt 0:12:45]} 12. Ne5 {[%emt 0:00:35]} Rc8 {[%emt 0:00:22] B22: Sicilian: 2 c3} 13. O-O $146 {[%emt 0:09:15]} ({Predecessor:} 13. Nxg4 Nxg4 14. f3 Nf6 15. Na4 Bb4+ 16. Bd2 Bxd2+ 17. Kxd2 Nd7 18. Rac1 Ke7 19. Rhe1 Kd6 20. Rc3 {0-1 (45) Coelho,P-Pacheco,A Brasilia 1999}) 13... Bd6 {[%emt 0:07:30]} 14. Bg5 {[%emt 0:09:47]} Bf5 {[%emt 0:06:29]} 15. Nc4 {[%emt 0:01:33]} Rd8 {[%emt 0:06:26]} 16. Bxf6 {[%emt 0:10:53]} gxf6 {[%emt 0:00:21]} 17. d5 {[%emt 0:00:18]} exd5 {[%emt 0:01:27]} 18. Nxb6 {[%emt 0:00:28]} d4 {[%emt 0:07:43]} 19. Ncd5 {[%emt 0:00:49]} O-O {[%emt 0:01:57]} 20. Nxf6+ {[%emt 0:01:56]} Kg7 {[%emt 0:01:16]} 21. Nh5+ {[%emt 0:00:28]} Kh6 {[%emt 0:03:37]} 22. Ng3 {[%emt 0:00:32]} Bg6 $11 {[%emt 0:05:43]} 23. Nc4 {[%emt 0:01:24]} d3 {[%emt 0:03:02]} 24. Bxc6 {[%emt 0:06:28]} bxc6 {[%emt 0:00:02]} 25. Nxd6 {[%emt 0:00:17]} Rxd6 {[%emt 0:00:05]} 26. f4 {[%emt 0:00:06]} d2 {[%emt 0:05:09]} 27. f5 {[%emt 0:00:45]} Rfd8 {[%emt 0:00:15]} 28. Rad1 {[%emt 0:01:49]} Bh5 {[%emt 0:00:14]} 29. Nxh5 {[%emt 0:00:06]} Kxh5 {[%emt 0:00:03]} 30. Rf2 {[%emt 0:00:24]} Kg5 {[%emt 0:00:41]} 31. f6 {[%emt 0:02:22]} Rd4 {[%emt 0:03:51]} 32. a4 {[%emt 0:01:13]} Rxa4 {[%emt 0:03:05]} 33. Rfxd2 {[%emt 0:00:22]} Rb8 1/2-1/2

[Event "WYCC 2018 O14"]
[Site "Halkidiki"]
[Date "2018.10.21"]
[Round "2"]
[White "Rathbone-Jones, Ifan"]
[Black "Srihari L R"]
[Result "0-1"]
[ECO "A41"]
[WhiteElo "1673"]
[BlackElo "2170"]
[Annotator "NA"]
[PlyCount "60"]
[EventDate "2018.10.20"]
[EventType "swiss"]
[EventCountry "GRE"]
[SourceTitle "playchess.com"]
[Source "ChessBase"]
[SourceQuality "1"]
[TimeControl "40/5400+30:1800+30"]

1. d4 {[%emt 0:00:00]} d6 {[%emt 0:00:26]} 2. c4 {[%emt 0:01:00]} Nd7 {[%emt 0:04:39]} 3. e4 {[%emt 0:02:09]} e5 {[%emt 0:00:19]} 4. d5 {[%emt 0:00:21]} Nc5 {[%emt 0:02:27]} 5. Nc3 {[%emt 0:02:44]} f5 {[%emt 0:00:41]} 6. Qc2 {[%emt 0:02:53]} (6. exf5 $14 Bxf5 7. Be3) 6... fxe4 {[%emt 0:00:46]} 7. Nxe4 {[%emt 0:01:34]} Nxe4 {[%emt 0:00:33]} 8. Qxe4 {[%emt 0:00:09]} Nf6 {[%emt 0:00:03]} 9. Qc2 {[%emt 0:01:49]} Be7 {[%emt 0:00:28]} 10. g3 {[%emt 0:04:18]} (10. Ne2 $11) 10... O-O {[%emt 0:00:29]} 11. Bg2 {[%emt 0:00:09]} c6 {[%emt 0:12:39]} 12. dxc6 {[%emt 0:02:40]} bxc6 {[%emt 0:00:49]} 13. Bxc6 {[%emt 0:10:47]} Rb8 {[%emt 0:01:25]} 14. Bg2 {[%emt 0:07:53]} Qb6 {[%emt 0:16:40]} 15. b3 {[%emt 0:09:41]} Bb7 {[%emt 0:05:37]} 16. f3 {[%emt 0:10:29]} d5 {[%emt 0:01:22]} 17. Nh3 {[%emt 0:07:11]} dxc4 $19 {[%emt 0:00:51]} 18. Qxc4+ {[%emt 0:03:22]} Bd5 {[%emt 0:00:11]} 19. Qe2 {[%emt 0:00:06]} Bb4+ {[%emt 0:01:41]} 20. Bd2 {[%emt 0:01:26]} Bxd2+ {[%emt 0:06:01]} 21. Qxd2 {[%emt 0:00:15]} Rbd8 {[%emt 0:00:03]} 22. Qe2 {[%emt 0:02:38]} Ng4 {[%emt 0:05:05]} 23. Rd1 {[%emt 0:18:26]} Ne3 24. Rxd5 {[%emt 0:00:09]} Rxd5 {[%emt 0:00:17]} 25. Rg1 {[%emt 0:01:56]} Qb4+ {[%emt 0:00:52]} 26. Kf2 {[%emt 0:00:03]} Ng4+ {[%emt 0:00:07]} 27. Kf1 {[%emt 0:00:07]} Nxh2+ {[%emt 0:00:07]} 28. Kf2 {[%emt 0:00:02]} Qc5+ {[%emt 0:00:08]} 29. Ke1 {[%emt 0:00:23]} Qc1+ {[%emt 0:00:04]} 30. Kf2 {[%emt 0:00:04]} Ng4# {[%emt 0:00:05]} 0-1

[Event "WYCC 2018 O14"]
[Site "Halkidiki"]
[Date "2018.10.21"]
[Round "2"]
[White "Ruiz Buendia, Miguel"]
[Black "Czopor, Maciej"]
[Result "0-1"]
[ECO "B80"]
[WhiteElo "1625"]
[BlackElo "2219"]
[Annotator "NA"]
[PlyCount "52"]
[EventDate "2018.10.20"]
[EventType "swiss"]
[EventCountry "GRE"]
[SourceTitle "playchess.com"]
[Source "ChessBase"]
[SourceQuality "1"]
[TimeControl "40/5400+30:1800+30"]

1. e4 {[%emt 0:00:00]} c5 {[%emt 0:00:00]} 2. Nf3 {[%emt 0:00:00]} e6 {[%emt 0:00:00]} 3. d4 {[%emt 0:00:00]} cxd4 {[%emt 0:00:00]} 4. Nxd4 {[%emt 0:00:00]} Nf6 {[%emt 0:00:00]} 5. Nc3 {[%emt 0:00:00]} d6 {[%emt 0:00:00]} 6. f3 {[%emt 0:00:00] LiveBook: 42 Games} a6 {[%emt 0:00:35]} 7. Be3 {[%emt 0:00:50]} b5 {[%emt 0:01:06]} 8. Qd2 {[%emt 0:00:23]} b4 {[%emt 0:02:13] B80: Sicilian Scheveningen: 6 g3 and 6 Be3, including English Attack} (8... Bb7 9. g4 Nfd7 10. O-O-O Nb6 11. Nb3 N8d7 12. Na5 Rb8 13. Bd4 Ba8 14. h4 Qc7 15. g5 b4 16. Nb1 e5 17. Bxb6 Rxb6 18. Nc4 Rc6 19. Ne3 {1-0 (70) Aronian,L (2767)-Nakamura,H (2777) Saint Louis 2018}) 9. Nce2 {[%emt 0:02:28]} e5 {[%emt 0:02:47]} 10. Nb3 {[%emt 0:05:30]} Nc6 {[%emt 0:03:17]} 11. c4 {[%emt 0:14:44]} Be6 {[%emt 0:06:17]} 12. Ng3 {[%emt 0:02:48]} a5 {[%emt 0:17:28]} 13. Bd3 $146 {[%emt 0:04:10]} ({Predecessor:} 13. Rd1 a4 14. Nc1 Be7 15. Bd3 O-O 16. O-O {½-½ (23) Demetrio,A (2518)-Ciucurel,S (2425) ICCF email 2010}) 13... a4 {[%emt 0:07:18]} 14. Nc1 {[%emt 0:01:03]} Nd7 {[%emt 0:08:51]} 15. Nce2 {[%emt 0:03:49]} h5 {[%emt 0:02:17]} 16. f4 {[%emt 0:07:36]} exf4 {[%emt 0:11:24]} 17. Nxf4 {[%emt 0:03:15]} g6 {[%emt 0:01:44]} 18. O-O {[%emt 0:05:24]} Bg7 {[%emt 0:08:25]} 19. Rf2 {[%emt 0:09:36]} Nde5 {[%emt 0:12:53]} (19... Nc5 $15) 20. Nd5 {[%emt 0:08:59]} (20. Nxe6 $11 fxe6 21. Be2) 20... Ng4 {[%emt 0:03:30]} 21. Re2 {[%emt 0:21:17]} Nxe3 {[%emt 0:02:01]} 22. Nxe3 {[%emt 0:00:52]} a3 {[%emt 0:01:35]} 23. Nd5 {[%emt 0:03:18]} axb2 {[%emt 0:04:03]} 24. Rae1 {[%emt 0:02:56]} Rxa2 {[%emt 0:02:06]} 25. Bb1 $19 {[%emt 0:00:42]} Ra1 {[%emt 0:01:23]} 26. Kh1 {[%emt 0:01:11]} O-O {[%emt 0:02:22]} 0-1

[Event "WYCC 2018 O14"]
[Site "Halkidiki"]
[Date "2018.10.21"]
[Round "3"]
[White "Spyropoulos, Nikolaos"]
[Black "Dabarera, G W D M"]
[Result "1-0"]
[ECO "C55"]
[WhiteElo "2378"]
[BlackElo "1768"]
[Annotator "NA"]
[PlyCount "123"]
[EventDate "2018.10.20"]
[EventType "swiss"]
[EventCountry "GRE"]
[SourceTitle "playchess.com"]
[Source "ChessBase"]
[SourceQuality "1"]
[TimeControl "40/5400+30:1800+30"]

1. e4 {[%emt 0:00:00]} e5 {[%emt 0:00:00]} 2. Nf3 {[%emt 0:00:00]} Nc6 {[%emt 0:00:00]} 3. Bc4 {[%emt 0:00:00]} Nf6 {[%emt 0:00:00]} 4. d3 {[%emt 0:00:05]} Be7 {[%emt 0:00:00]} 5. O-O {[%emt 0:01:07]} O-O {[%emt 0:00:00]} 6. Re1 {[%emt 0:13:32]} d6 {[%emt 0:00:07]} 7. a4 {[%emt 0:00:05]} Bg4 {[%emt 0:02:06]} 8. c3 {[%emt 0:02:54] C55: Two Knights: 4 d3, 4 d4 exd4 5 e5 and Max Lange Attack} (8. h3 Bh5 9. Nbd2 Nd4 10. g4 Nxf3+ 11. Qxf3 Bg6 12. Qg3 d5 13. exd5 Nxd5 14. Nf3 f6 15. Nxe5 fxe5 16. Qxe5 Bf7 17. Bxd5 Bxd5 18. Qxe7 Rf3 19. Qxd8+ Rxd8 20. Re5 Rxh3 21. Rh5 {½-½ (21) Wei,Y (2725)-Bu,X (2711) Ho Chi Minh City 2017}) 8... d5 {[%emt 0:08:44]} 9. exd5 {[%emt 0:01:21]} Nxd5 {[%emt 0:00:05]} 10. h3 {[%emt 0:07:14] LiveBook: 3 Partien} Bh5 {[%emt 0:00:38]} 11. Nbd2 {[%emt 0:03:40]} Nf4 {[%emt 0:13:39]} 12. Nf1 $146 {[%emt 0:10:09]} ({Predecessor:} 12. Nb3 Bd6 13. Bxf4 exf4 14. d4 Qf6 15. Nbd2 Rae8 {½-½ (50) Gergacz,A (2425)-Kotz,H (2330) Austria 2011}) 12... g5 $2 {[%emt 0:01:36]} (12... Na5 $1 $11 13. Bxf4 exf4) 13. Ng3 {[%emt 0:07:21]} Bg6 {[%emt 0:02:28]} 14. Nxe5 {[%emt 0:04:37]} Nxe5 {[%emt 0:00:22]} 15. Rxe5 {[%emt 0:00:05]} Bf6 {[%emt 0:01:39]} 16. Re3 {[%emt 0:01:41]} Kh8 {[%emt 0:02:17]} 17. Ne4 $18 {[%emt 0:09:38]} Bg7 {[%emt 0:00:38]} 18. Re1 {[%emt 0:00:35]} Re8 {[%emt 0:03:09]} 19. Bxf4 {[%emt 0:03:30]} gxf4 {[%emt 0:00:28]} 20. Qf3 {[%emt 0:01:51]} Qh4 {[%emt 0:01:12]} 21. Qg4 {[%emt 0:02:48]} Qxg4 {[%emt 0:01:19]} 22. hxg4 {[%emt 0:00:05]} f5 {[%emt 0:00:54]} 23. gxf5 {[%emt 0:02:29]} Bxf5 {[%emt 0:00:05]} 24. Ng5 {[%emt 0:01:31]} Bf6 {[%emt 0:01:25]} 25. Nf3 {[%emt 0:00:50]} Kg7 {[%emt 0:00:41]} 26. d4 {[%emt 0:07:51]} h5 {[%emt 0:01:26]} 27. Rxe8 {[%emt 0:02:34]} Rxe8 {[%emt 0:00:25]} 28. Re1 {[%emt 0:00:12]} Rxe1+ {[%emt 0:00:32]} 29. Nxe1 {[%emt 0:00:07]} Kf8 {[%emt 0:02:12]} 30. Kf1 {[%emt 0:10:52]} Ke7 {[%emt 0:02:23]} 31. Ke2 {[%emt 0:00:48]} Bg4+ {[%emt 0:00:18]} 32. f3 {[%emt 0:00:34]} Bd7 {[%emt 0:03:15]} 33. Nd3 {[%emt 0:00:38]} Bg5 {[%emt 0:00:21]} 34. Bb5 {[%emt 0:00:29]} c6 {[%emt 0:00:24]} 35. Bc4 {[%emt 0:00:05]} b6 {[%emt 0:00:32]} 36. Ne5 {[%emt 0:01:18]} Be8 {[%emt 0:00:32]} 37. Bd3 {[%emt 0:03:41]} Kf6 {[%emt 0:01:04]} 38. b3 {[%emt 0:02:08]} Bh6 {[%emt 0:02:02]} 39. Be4 {[%emt 0:00:30]} c5 {[%emt 0:00:27]} 40. Kd3 {[%emt 0:00:00]} cxd4 {[%emt 0:00:00]} 41. cxd4 {[%emt 0:03:00]} Bf8 {[%emt 0:04:20]} 42. Bc6 {[%emt 0:06:45]} Bg6+ {[%emt 0:01:05]} 43. Kc4 {[%emt 0:03:48]} Bf7+ {[%emt 0:03:55]} 44. Kb5 {[%emt 0:10:00]} Bd6 {[%emt 0:06:58]} 45. Nxf7 {[%emt 0:01:13]} Kxf7 {[%emt 0:00:02]} 46. Ka6 {[%emt 0:00:06]} Bc7 {[%emt 0:00:52]} 47. Kxa7 {[%emt 0:00:36]} Ke6 {[%emt 0:00:10]} 48. b4 {[%emt 0:01:20]} Kd6 {[%emt 0:00:10]} 49. Be4 {[%emt 0:00:10]} Bd8 {[%emt 0:00:44]} 50. Kb7 {[%emt 0:02:18]} h4 {[%emt 0:01:06]} 51. Bc6 {[%emt 0:05:24]} Bc7 {[%emt 0:00:24]} 52. Kc8 {[%emt 0:01:53]} Kxc6 {[%emt 0:03:38]} 53. b5+ {[%emt 0:00:12]} Kd5 {[%emt 0:00:55]} 54. Kxc7 {[%emt 0:00:05]} Kxd4 {[%emt 0:00:08]} 55. Kxb6 {[%emt 0:01:10]} Ke3 {[%emt 0:00:07]} 56. Kc5 {[%emt 0:00:11]} Kf2 {[%emt 0:00:07]} 57. b6 {[%emt 0:00:02]} Kxg2 {[%emt 0:00:08]} 58. b7 {[%emt 0:00:03]} h3 {[%emt 0:00:16]} 59. b8=Q {[%emt 0:00:03]} h2 {[%emt 0:00:23]} 60. Qh8 {[%emt 0:00:13]} h1=Q {[%emt 0:00:14]} 61. Qxh1+ {[%emt 0:00:03]} Kxh1 {[%emt 0:00:12]} 62. Kd4 {[%emt 0:00:03]} 1-0

[Event "WYCC 2018 O14"]
[Site "Halkidiki"]
[Date "2018.10.21"]
[Round "3"]
[White "Pogosyan, Stefan"]
[Black "Subelj, Jan"]
[Result "1-0"]
[ECO "E32"]
[WhiteElo "2373"]
[BlackElo "2281"]
[Annotator "NA"]
[PlyCount "77"]
[EventDate "2018.10.20"]
[EventType "swiss"]
[EventCountry "GRE"]
[SourceTitle "playchess.com"]
[Source "ChessBase"]
[SourceQuality "1"]
[TimeControl "40/5400+30:1800+30"]

1. d4 {[%emt 0:00:00]} Nf6 {[%emt 0:00:00]} 2. c4 {[%emt 0:00:00]} e6 {[%emt 0:00:00]} 3. Nc3 {[%emt 0:00:00]} Bb4 {[%emt 0:00:13]} 4. Qc2 {[%emt 0:00:04]} b6 {[%emt 0:00:51]} 5. Bg5 {[%emt 0:03:57]} Bb7 {[%emt 0:01:18]} 6. a3 {[%emt 0:00:37]} Bxc3+ {[%emt 0:02:14]} 7. Qxc3 {[%emt 0:00:35]} h6 {[%emt 0:00:39]} 8. Bh4 {[%emt 0:00:21]} d6 {[%emt 0:06:40]} 9. f3 {[%emt 0:04:53]} Nbd7 {[%emt 0:02:35]} 10. e3 {[%emt 0:04:04]} e5 {[%emt 0:12:27]} 11. d5 {[%emt 0:03:54]} e4 {[%emt 0:08:27]} 12. f4 {[%emt 0:14:24]} Qe7 {[%emt 0:04:44]} 13. O-O-O {[%emt 0:05:03]} Rg8 {[%emt 0:02:30]} 14. Qc2 {[%emt 0:11:02]} g5 {[%emt 0:02:44]} 15. fxg5 {[%emt 0:04:08]} hxg5 {[%emt 0:06:41]} 16. Bg3 {[%emt 0:00:34]} Ng4 {[%emt 0:01:13]} 17. Qc3 {[%emt 0:02:10]} Nge5 {[%emt 0:10:02]} 18. Ne2 {[%emt 0:01:22]} Nd3+ {[%emt 0:02:28]} 19. Kb1 {[%emt 0:01:12]} N7c5 {[%emt 0:01:01]} 20. Nd4 {[%emt 0:00:39]} Na4 {[%emt 0:03:31]} 21. Qb3 {[%emt 0:01:48]} Nac5 {[%emt 0:00:29]} 22. Qc2 {[%emt 0:00:34]} a5 {[%emt 0:00:09]} 23. Be2 {[%emt 0:01:48]} b5 {[%emt 0:10:09]} 24. Nxb5 {[%emt 0:05:49]} Rb8 {[%emt 0:00:55]} 25. a4 {[%emt 0:07:33]} f5 {[%emt 0:07:20]} 26. Rhf1 {[%emt 0:05:19]} Qh7 {[%emt 0:00:46]} 27. Bxd3 {[%emt 0:04:19]} Nxd3 {[%emt 0:04:05]} 28. Rxd3 {[%emt 0:07:21]} exd3 {[%emt 0:00:02]} 29. Qxd3 {[%emt 0:00:00]} Bc8 {[%emt 0:00:28]} 30. c5 {[%emt 0:00:24]} Kd8 {[%emt 0:04:08]} 31. cxd6 {[%emt 0:01:18]} cxd6 {[%emt 0:00:07]} 32. Bxd6 {[%emt 0:00:13]} Rb7 {[%emt 0:00:16]} 33. Qd4 {[%emt 0:05:14]} Rg6 {[%emt 0:02:35]} 34. Rc1 {[%emt 0:01:53]} Rxb5 {[%emt 0:01:48]} 35. Bc7+ {[%emt 0:00:20]} Kd7 {[%emt 0:00:18]} 36. axb5 {[%emt 0:00:08]} f4 {[%emt 0:00:08]} 37. Ka1 {[%emt 0:00:21]} Qe7 {[%emt 0:00:45]} 38. Bxa5 {[%emt 0:00:46]} Qd6 {[%emt 0:01:16]} 39. Qa7+ {[%emt 0:00:31]} 1-0

[Event "WYCC 2018 O14"]
[Site "Halkidiki"]
[Date "2018.10.21"]
[Round "3"]
[White "Stoyanov, Tsvetan"]
[Black "Shermuhammadov, Samandar"]
[Result "1-0"]
[ECO "B00"]
[WhiteElo "2340"]
[BlackElo "1962"]
[Annotator "NA"]
[PlyCount "85"]
[EventDate "2018.10.20"]
[EventType "swiss"]
[EventCountry "GRE"]
[SourceTitle "playchess.com"]
[Source "ChessBase"]
[SourceQuality "1"]
[TimeControl "40/5400+30:1800+30"]

1. e4 {[%emt 0:00:00]} d6 {[%emt 0:00:00]} 2. d4 {[%emt 0:00:00]} g6 {[%emt 0:00:00]} 3. Nf3 {[%emt 0:00:05]} Bg7 {[%emt 0:00:02]} 4. Bd3 {[%emt 0:00:43]} e5 {[%emt 0:00:10]} 5. dxe5 {[%emt 0:06:44] B06: Modern Defence} dxe5 {[%emt 0:00:10]} 6. O-O {[%emt 0:05:40]} Ne7 {[%emt 0:00:40]} (6... Nd7 7. Nbd2 Nh6 8. Nc4 f6 9. b3 O-O 10. a4 a5 11. Ba3 Re8 12. Qd2 b6 {1-0 (31) Alekseev,E (2622)-Rozum,I (2590) Sochi 2017}) 7. Qe2 {[%emt 0:01:16]} O-O $146 {[%emt 0:01:10]} ({Predecessor:} 7... Nbc6 8. Rd1 Nd4 9. Nxd4 exd4 10. Bg5 h6 11. Bh4 O-O 12. Nd2 Be6 {½-½ (20) Nguyen,A (2508)-Yap,K (2395) Bandar Seri Begawan 2011}) 8. Na3 {[%emt 0:02:17]} Nec6 {[%emt 0:06:32]} 9. c3 {[%emt 0:07:12]} Nd7 {[%emt 0:04:54]} 10. b4 {[%emt 0:11:05]} Qe7 {[%emt 0:04:12]} 11. Nc4 {[%emt 0:01:19]} Nd8 {[%emt 0:00:28]} 12. Re1 {[%emt 0:04:52]} Ne6 {[%emt 0:01:28]} 13. Qc2 {[%emt 0:00:35]} b6 {[%emt 0:03:21]} 14. a4 {[%emt 0:03:51]} Bb7 {[%emt 0:02:09]} 15. a5 {[%emt 0:01:08]} b5 {[%emt 0:04:12]} 16. a6 {[%emt 0:01:20]} Bxa6 {[%emt 0:13:36]} 17. Rxa6 {[%emt 0:02:27]} bxc4 {[%emt 0:00:11]} 18. Bxc4 {[%emt 0:00:02]} Nb6 {[%emt 0:00:19]} 19. Bd5 $18 {[%emt 0:02:52]} Rad8 {[%emt 0:10:16]} 20. Bxe6 {[%emt 0:10:20]} Qxe6 {[%emt 0:01:29]} 21. Rxa7 {[%emt 0:00:05]} Qc6 {[%emt 0:03:30]} 22. Ra5 {[%emt 0:01:39]} Rfe8 {[%emt 0:01:41]} 23. Rc5 {[%emt 0:01:37]} Qb7 {[%emt 0:03:28]} 24. Be3 {[%emt 0:07:43]} Ra8 {[%emt 0:02:14]} 25. Rd1 {[%emt 0:06:05]} Red8 {[%emt 0:01:07]} 26. Rxd8+ {[%emt 0:03:45]} Rxd8 {[%emt 0:00:12]} 27. h3 {[%emt 0:02:14]} Ra8 {[%emt 0:02:25]} 28. Qb3 {[%emt 0:05:36]} Nd7 {[%emt 0:04:54]} 29. Rd5 {[%emt 0:00:12]} Nb6 {[%emt 0:11:14]} 30. Ra5 {[%emt 0:05:06]} Rf8 {[%emt 0:05:20]} 31. Bxb6 {[%emt 0:04:22]} cxb6 {[%emt 0:00:32]} 32. Rd5 {[%emt 0:00:28]} Qc7 {[%emt 0:00:20]} 33. c4 {[%emt 0:01:27]} Kh8 {[%emt 0:00:10]} 34. Qd3 {[%emt 0:00:38]} Qe7 {[%emt 0:03:10]} 35. Rb5 {[%emt 0:00:53]} f5 {[%emt 0:01:09]} 36. Rxb6 {[%emt 0:00:25]} Rd8 {[%emt 0:00:51]} 37. Qe2 {[%emt 0:01:17]} Qa7 {[%emt 0:03:13]} 38. c5 {[%emt 0:00:05]} Qa1+ {[%emt 0:00:19]} 39. Kh2 {[%emt 0:00:15]} Qc1 {[%emt 0:01:22]} 40. g3 {[%emt 0:00:00]} Ra8 {[%emt 0:00:00]} 41. exf5 {[%emt 0:07:27]} gxf5 {[%emt 0:02:56]} 42. Nxe5 {[%emt 0:01:11]} h6 {[%emt 0:03:19]} 43. Qf3 {[%emt 0:03:53]} 1-0